{"text_format":"1","workbook":"xlsx","n_sheets":8,"sheets":["как хочу","Статусы","Список оборудования","КПУ EBS","ДП","ТРП","ТРПШ","ТРПП"],"not_rendered":{"charts":0,"images":0,"macros":0,"external_links":0,"defined_names":1,"comments":0,"pivot_tables":0},"unopened":[],"bounds":{"document_bytes":16777216,"sheet_cells":100000,"rows_first":2000,"rows_last":500,"rows_between":2000,"halvings":0,"cell_chars":16384,"cell_head_chars":4096},"cells_cut":0,"cells_raw":0,"read":"whole","date_system":"1900"}

{"sheet":"как хочу","index":0,"n_rows":43,"n_cols":7,"rows_kept":43,"cut":false,"hidden":false,"merged":[]}
["Оборудование, шифр","Количество оборудования к запуску","Текущая дата","Столбец1","Столбец2",null,{"$f":"SUM(таблПоиск11[Столбец1])","v":20}]
["КПУ EBS",null,null,{"$f":"IF(таблПоиск11[[#This Row],[Оборудование, шифр]]=\"\",\"\",COUNTA(INDIRECT(\"'\"&таблПоиск11[[#This Row],[Оборудование, шифр]]&\"'!A:A\"))-1)","v":10},{"$f":"IF(таблПоиск11[[#This Row],[Оборудование, шифр]]=\"\",\"\",SUM($D$1:D1)+1)","v":1}]
["ДП",null,null,{"$f":"IF(таблПоиск11[[#This Row],[Оборудование, шифр]]=\"\",\"\",COUNTA(INDIRECT(\"'\"&таблПоиск11[[#This Row],[Оборудование, шифр]]&\"'!A:A\"))-1)","v":10},{"$f":"IF(таблПоиск11[[#This Row],[Оборудование, шифр]]=\"\",\"\",SUM($D$1:D2)+1)","v":11}]
[null,null,null,{"$f":"IF(таблПоиск11[[#This Row],[Оборудование, шифр]]=\"\",\"\",COUNTA(INDIRECT(\"'\"&таблПоиск11[[#This Row],[Оборудование, шифр]]&\"'!A:A\"))-1)","v":""},{"$f":"IF(таблПоиск11[[#This Row],[Оборудование, шифр]]=\"\",\"\",SUM($D$1:D3)+1)","v":""}]
[null,null,null,{"$f":"IF(таблПоиск11[[#This Row],[Оборудование, шифр]]=\"\",\"\",COUNTA(INDIRECT(\"'\"&таблПоиск11[[#This Row],[Оборудование, шифр]]&\"'!A:A\"))-1)","v":""},{"$f":"IF(таблПоиск11[[#This Row],[Оборудование, шифр]]=\"\",\"\",SUM($D$1:D4)+1)","v":""}]
[null,null,null,{"$f":"IF(таблПоиск11[[#This Row],[Оборудование, шифр]]=\"\",\"\",COUNTA(INDIRECT(\"'\"&таблПоиск11[[#This Row],[Оборудование, шифр]]&\"'!A:A\"))-1)","v":""},{"$f":"IF(таблПоиск11[[#This Row],[Оборудование, шифр]]=\"\",\"\",SUM($D$1:D5)+1)","v":""}]
[null,null,null,{"$f":"IF(таблПоиск11[[#This Row],[Оборудование, шифр]]=\"\",\"\",COUNTA(INDIRECT(\"'\"&таблПоиск11[[#This Row],[Оборудование, шифр]]&\"'!A:A\"))-1)","v":""},{"$f":"IF(таблПоиск11[[#This Row],[Оборудование, шифр]]=\"\",\"\",SUM($D$1:D6)+1)","v":""}]
[null,null,null,{"$f":"IF(таблПоиск11[[#This Row],[Оборудование, шифр]]=\"\",\"\",COUNTA(INDIRECT(\"'\"&таблПоиск11[[#This Row],[Оборудование, шифр]]&\"'!A:A\"))-1)","v":""},{"$f":"IF(таблПоиск11[[#This Row],[Оборудование, шифр]]=\"\",\"\",SUM($D$1:D7)+1)","v":""}]
[null,null,null,{"$f":"IF(таблПоиск11[[#This Row],[Оборудование, шифр]]=\"\",\"\",COUNTA(INDIRECT(\"'\"&таблПоиск11[[#This Row],[Оборудование, шифр]]&\"'!A:A\"))-1)","v":""},{"$f":"IF(таблПоиск11[[#This Row],[Оборудование, шифр]]=\"\",\"\",SUM($D$1:D8)+1)","v":""}]
[null,null,null,{"$f":"IF(таблПоиск11[[#This Row],[Оборудование, шифр]]=\"\",\"\",COUNTA(INDIRECT(\"'\"&таблПоиск11[[#This Row],[Оборудование, шифр]]&\"'!A:A\"))-1)","v":""},{"$f":"IF(таблПоиск11[[#This Row],[Оборудование, шифр]]=\"\",\"\",SUM($D$1:D9)+1)","v":""}]
[null,null,null,{"$f":"IF(таблПоиск11[[#This Row],[Оборудование, шифр]]=\"\",\"\",COUNTA(INDIRECT(\"'\"&таблПоиск11[[#This Row],[Оборудование, шифр]]&\"'!A:A\"))-1)","v":""},{"$f":"IF(таблПоиск11[[#This Row],[Оборудование, шифр]]=\"\",\"\",SUM($D$1:D10)+1)","v":""}]
[]
[]
[]
[]
[]
[]
[]
["Шифр детали или СБ","Наименование детали или СБ","Количество ДСЕ в спецификации","Количество ДСЕ к запуску","Статус запуска ДСЕ","Остаток ДСЕ на складе","Количество запущенных в производство ДСЕ"]
[{"$f":"IF(ROW(A1)>$G$1,\"\",INDIRECT(\"'\"&INDEX(таблПоиск11[Оборудование, шифр],MATCH(ROW(A1),таблПоиск11[Столбец2]))&\"'!\"&ADDRESS(ROW(A1)-INDEX(таблПоиск11[Столбец2],MATCH(ROW(A1),таблПоиск11[Столбец2]))+3,COLUMN())))","v":"EBС.01.000"},{"$f":"IF(ROW(A1)>$G$1,\"\",INDIRECT(\"'\"&INDEX(таблПоиск11[Оборудование, шифр],MATCH(ROW(A1),таблПоиск11[Столбец2]))&\"'!\"&ADDRESS(ROW(A1)-INDEX(таблПоиск11[Столбец2],MATCH(ROW(A1),таблПоиск11[Столбец2]))+3,COLUMN())))","v":"Кронштейн пушки"}]
[{"$f":"IF(ROW(A2)>$G$1,\"\",INDIRECT(\"'\"&INDEX(таблПоиск11[Оборудование, шифр],MATCH(ROW(A2),таблПоиск11[Столбец2]))&\"'!\"&ADDRESS(ROW(A2)-INDEX(таблПоиск11[Столбец2],MATCH(ROW(A2),таблПоиск11[Столбец2]))+3,COLUMN())))","v":"ЕВС.01.001"},{"$f":"IF(ROW(A2)>$G$1,\"\",INDIRECT(\"'\"&INDEX(таблПоиск11[Оборудование, шифр],MATCH(ROW(A2),таблПоиск11[Столбец2]))&\"'!\"&ADDRESS(ROW(A2)-INDEX(таблПоиск11[Столбец2],MATCH(ROW(A2),таблПоиск11[Столбец2]))+3,COLUMN())))","v":"Скоба"}]
[{"$f":"IF(ROW(A3)>$G$1,\"\",INDIRECT(\"'\"&INDEX(таблПоиск11[Оборудование, шифр],MATCH(ROW(A3),таблПоиск11[Столбец2]))&\"'!\"&ADDRESS(ROW(A3)-INDEX(таблПоиск11[Столбец2],MATCH(ROW(A3),таблПоиск11[Столбец2]))+3,COLUMN())))","v":"EBС.00.001"},{"$f":"IF(ROW(A3)>$G$1,\"\",INDIRECT(\"'\"&INDEX(таблПоиск11[Оборудование, шифр],MATCH(ROW(A3),таблПоиск11[Столбец2]))&\"'!\"&ADDRESS(ROW(A3)-INDEX(таблПоиск11[Столбец2],MATCH(ROW(A3),таблПоиск11[Столбец2]))+3,COLUMN())))","v":"Кронштейн"}]
[{"$f":"IF(ROW(A4)>$G$1,\"\",INDIRECT(\"'\"&INDEX(таблПоиск11[Оборудование, шифр],MATCH(ROW(A4),таблПоиск11[Столбец2]))&\"'!\"&ADDRESS(ROW(A4)-INDEX(таблПоиск11[Столбец2],MATCH(ROW(A4),таблПоиск11[Столбец2]))+3,COLUMN())))","v":"EBС.00.004"},{"$f":"IF(ROW(A4)>$G$1,\"\",INDIRECT(\"'\"&INDEX(таблПоиск11[Оборудование, шифр],MATCH(ROW(A4),таблПоиск11[Столбец2]))&\"'!\"&ADDRESS(ROW(A4)-INDEX(таблПоиск11[Столбец2],MATCH(ROW(A4),таблПоиск11[Столбец2]))+3,COLUMN())))","v":"Грибок"}]
[{"$f":"IF(ROW(A5)>$G$1,\"\",INDIRECT(\"'\"&INDEX(таблПоиск11[Оборудование, шифр],MATCH(ROW(A5),таблПоиск11[Столбец2]))&\"'!\"&ADDRESS(ROW(A5)-INDEX(таблПоиск11[Столбец2],MATCH(ROW(A5),таблПоиск11[Столбец2]))+3,COLUMN())))","v":"EBС.00.005"},{"$f":"IF(ROW(A5)>$G$1,\"\",INDIRECT(\"'\"&INDEX(таблПоиск11[Оборудование, шифр],MATCH(ROW(A5),таблПоиск11[Столбец2]))&\"'!\"&ADDRESS(ROW(A5)-INDEX(таблПоиск11[Столбец2],MATCH(ROW(A5),таблПоиск11[Столбец2]))+3,COLUMN())))","v":"Полка"}]
[{"$f":"IF(ROW(A6)>$G$1,\"\",INDIRECT(\"'\"&INDEX(таблПоиск11[Оборудование, шифр],MATCH(ROW(A6),таблПоиск11[Столбец2]))&\"'!\"&ADDRESS(ROW(A6)-INDEX(таблПоиск11[Столбец2],MATCH(ROW(A6),таблПоиск11[Столбец2]))+3,COLUMN())))","v":"EBС.00.006"},{"$f":"IF(ROW(A6)>$G$1,\"\",INDIRECT(\"'\"&INDEX(таблПоиск11[Оборудование, шифр],MATCH(ROW(A6),таблПоиск11[Столбец2]))&\"'!\"&ADDRESS(ROW(A6)-INDEX(таблПоиск11[Столбец2],MATCH(ROW(A6),таблПоиск11[Столбец2]))+3,COLUMN())))","v":"Держатель"}]
[{"$f":"IF(ROW(A7)>$G$1,\"\",INDIRECT(\"'\"&INDEX(таблПоиск11[Оборудование, шифр],MATCH(ROW(A7),таблПоиск11[Столбец2]))&\"'!\"&ADDRESS(ROW(A7)-INDEX(таблПоиск11[Столбец2],MATCH(ROW(A7),таблПоиск11[Столбец2]))+3,COLUMN())))","v":"ЕБС.00.007"},{"$f":"IF(ROW(A7)>$G$1,\"\",INDIRECT(\"'\"&INDEX(таблПоиск11[Оборудование, шифр],MATCH(ROW(A7),таблПоиск11[Столбец2]))&\"'!\"&ADDRESS(ROW(A7)-INDEX(таблПоиск11[Столбец2],MATCH(ROW(A7),таблПоиск11[Столбец2]))+3,COLUMN())))","v":"Пластина"}]
[{"$f":"IF(ROW(A8)>$G$1,\"\",INDIRECT(\"'\"&INDEX(таблПоиск11[Оборудование, шифр],MATCH(ROW(A8),таблПоиск11[Столбец2]))&\"'!\"&ADDRESS(ROW(A8)-INDEX(таблПоиск11[Столбец2],MATCH(ROW(A8),таблПоиск11[Столбец2]))+3,COLUMN())))","v":"ЕВС.01.002"},{"$f":"IF(ROW(A8)>$G$1,\"\",INDIRECT(\"'\"&INDEX(таблПоиск11[Оборудование, шифр],MATCH(ROW(A8),таблПоиск11[Столбец2]))&\"'!\"&ADDRESS(ROW(A8)-INDEX(таблПоиск11[Столбец2],MATCH(ROW(A8),таблПоиск11[Столбец2]))+3,COLUMN())))","v":"Трубка 16х1.5 08X18H10 L=800"}]
[{"$f":"IF(ROW(A9)>$G$1,\"\",INDIRECT(\"'\"&INDEX(таблПоиск11[Оборудование, шифр],MATCH(ROW(A9),таблПоиск11[Столбец2]))&\"'!\"&ADDRESS(ROW(A9)-INDEX(таблПоиск11[Столбец2],MATCH(ROW(A9),таблПоиск11[Столбец2]))+3,COLUMN())))","v":"EBС.00.002"},{"$f":"IF(ROW(A9)>$G$1,\"\",INDIRECT(\"'\"&INDEX(таблПоиск11[Оборудование, шифр],MATCH(ROW(A9),таблПоиск11[Столбец2]))&\"'!\"&ADDRESS(ROW(A9)-INDEX(таблПоиск11[Столбец2],MATCH(ROW(A9),таблПоиск11[Столбец2]))+3,COLUMN())))","v":"Труба 48.3х1.5 08X18H10 L=780"}]
[{"$f":"IF(ROW(A10)>$G$1,\"\",INDIRECT(\"'\"&INDEX(таблПоиск11[Оборудование, шифр],MATCH(ROW(A10),таблПоиск11[Столбец2]))&\"'!\"&ADDRESS(ROW(A10)-INDEX(таблПоиск11[Столбец2],MATCH(ROW(A10),таблПоиск11[Столбец2]))+3,COLUMN())))","v":"EBС.00.003"},{"$f":"IF(ROW(A10)>$G$1,\"\",INDIRECT(\"'\"&INDEX(таблПоиск11[Оборудование, шифр],MATCH(ROW(A10),таблПоиск11[Столбец2]))&\"'!\"&ADDRESS(ROW(A10)-INDEX(таблПоиск11[Столбец2],MATCH(ROW(A10),таблПоиск11[Столбец2]))+3,COLUMN())))","v":"Труба 42.4х1.5 08X18H10 L=315"}]
[{"$f":"IF(ROW(A11)>$G$1,\"\",INDIRECT(\"'\"&INDEX(таблПоиск11[Оборудование, шифр],MATCH(ROW(A11),таблПоиск11[Столбец2]))&\"'!\"&ADDRESS(ROW(A11)-INDEX(таблПоиск11[Столбец2],MATCH(ROW(A11),таблПоиск11[Столбец2]))+3,COLUMN())))","v":"EBС.01.000"},{"$f":"IF(ROW(A11)>$G$1,\"\",INDIRECT(\"'\"&INDEX(таблПоиск11[Оборудование, шифр],MATCH(ROW(A11),таблПоиск11[Столбец2]))&\"'!\"&ADDRESS(ROW(A11)-INDEX(таблПоиск11[Столбец2],MATCH(ROW(A11),таблПоиск11[Столбец2]))+3,COLUMN())))","v":"Кронштейн пушки"}]
[{"$f":"IF(ROW(A12)>$G$1,\"\",INDIRECT(\"'\"&INDEX(таблПоиск11[Оборудование, шифр],MATCH(ROW(A12),таблПоиск11[Столбец2]))&\"'!\"&ADDRESS(ROW(A12)-INDEX(таблПоиск11[Столбец2],MATCH(ROW(A12),таблПоиск11[Столбец2]))+3,COLUMN())))","v":"ЕВС.01.001"},{"$f":"IF(ROW(A12)>$G$1,\"\",INDIRECT(\"'\"&INDEX(таблПоиск11[Оборудование, шифр],MATCH(ROW(A12),таблПоиск11[Столбец2]))&\"'!\"&ADDRESS(ROW(A12)-INDEX(таблПоиск11[Столбец2],MATCH(ROW(A12),таблПоиск11[Столбец2]))+3,COLUMN())))","v":"Скоба"}]
[{"$f":"IF(ROW(A13)>$G$1,\"\",INDIRECT(\"'\"&INDEX(таблПоиск11[Оборудование, шифр],MATCH(ROW(A13),таблПоиск11[Столбец2]))&\"'!\"&ADDRESS(ROW(A13)-INDEX(таблПоиск11[Столбец2],MATCH(ROW(A13),таблПоиск11[Столбец2]))+3,COLUMN())))","v":"EBС.00.001"},{"$f":"IF(ROW(A13)>$G$1,\"\",INDIRECT(\"'\"&INDEX(таблПоиск11[Оборудование, шифр],MATCH(ROW(A13),таблПоиск11[Столбец2]))&\"'!\"&ADDRESS(ROW(A13)-INDEX(таблПоиск11[Столбец2],MATCH(ROW(A13),таблПоиск11[Столбец2]))+3,COLUMN())))","v":"Кронштейн"}]
[{"$f":"IF(ROW(A14)>$G$1,\"\",INDIRECT(\"'\"&INDEX(таблПоиск11[Оборудование, шифр],MATCH(ROW(A14),таблПоиск11[Столбец2]))&\"'!\"&ADDRESS(ROW(A14)-INDEX(таблПоиск11[Столбец2],MATCH(ROW(A14),таблПоиск11[Столбец2]))+3,COLUMN())))","v":"EBС.00.004"},{"$f":"IF(ROW(A14)>$G$1,\"\",INDIRECT(\"'\"&INDEX(таблПоиск11[Оборудование, шифр],MATCH(ROW(A14),таблПоиск11[Столбец2]))&\"'!\"&ADDRESS(ROW(A14)-INDEX(таблПоиск11[Столбец2],MATCH(ROW(A14),таблПоиск11[Столбец2]))+3,COLUMN())))","v":"Грибок"}]
[{"$f":"IF(ROW(A15)>$G$1,\"\",INDIRECT(\"'\"&INDEX(таблПоиск11[Оборудование, шифр],MATCH(ROW(A15),таблПоиск11[Столбец2]))&\"'!\"&ADDRESS(ROW(A15)-INDEX(таблПоиск11[Столбец2],MATCH(ROW(A15),таблПоиск11[Столбец2]))+3,COLUMN())))","v":"EBС.00.005"},{"$f":"IF(ROW(A15)>$G$1,\"\",INDIRECT(\"'\"&INDEX(таблПоиск11[Оборудование, шифр],MATCH(ROW(A15),таблПоиск11[Столбец2]))&\"'!\"&ADDRESS(ROW(A15)-INDEX(таблПоиск11[Столбец2],MATCH(ROW(A15),таблПоиск11[Столбец2]))+3,COLUMN())))","v":"Полка"}]
[{"$f":"IF(ROW(A16)>$G$1,\"\",INDIRECT(\"'\"&INDEX(таблПоиск11[Оборудование, шифр],MATCH(ROW(A16),таблПоиск11[Столбец2]))&\"'!\"&ADDRESS(ROW(A16)-INDEX(таблПоиск11[Столбец2],MATCH(ROW(A16),таблПоиск11[Столбец2]))+3,COLUMN())))","v":"EBС.00.006"},{"$f":"IF(ROW(A16)>$G$1,\"\",INDIRECT(\"'\"&INDEX(таблПоиск11[Оборудование, шифр],MATCH(ROW(A16),таблПоиск11[Столбец2]))&\"'!\"&ADDRESS(ROW(A16)-INDEX(таблПоиск11[Столбец2],MATCH(ROW(A16),таблПоиск11[Столбец2]))+3,COLUMN())))","v":"Держатель"}]
[{"$f":"IF(ROW(A17)>$G$1,\"\",INDIRECT(\"'\"&INDEX(таблПоиск11[Оборудование, шифр],MATCH(ROW(A17),таблПоиск11[Столбец2]))&\"'!\"&ADDRESS(ROW(A17)-INDEX(таблПоиск11[Столбец2],MATCH(ROW(A17),таблПоиск11[Столбец2]))+3,COLUMN())))","v":"ЕБС.00.007"},{"$f":"IF(ROW(A17)>$G$1,\"\",INDIRECT(\"'\"&INDEX(таблПоиск11[Оборудование, шифр],MATCH(ROW(A17),таблПоиск11[Столбец2]))&\"'!\"&ADDRESS(ROW(A17)-INDEX(таблПоиск11[Столбец2],MATCH(ROW(A17),таблПоиск11[Столбец2]))+3,COLUMN())))","v":"Пластина"}]
[{"$f":"IF(ROW(A18)>$G$1,\"\",INDIRECT(\"'\"&INDEX(таблПоиск11[Оборудование, шифр],MATCH(ROW(A18),таблПоиск11[Столбец2]))&\"'!\"&ADDRESS(ROW(A18)-INDEX(таблПоиск11[Столбец2],MATCH(ROW(A18),таблПоиск11[Столбец2]))+3,COLUMN())))","v":"ЕВС.01.002"},{"$f":"IF(ROW(A18)>$G$1,\"\",INDIRECT(\"'\"&INDEX(таблПоиск11[Оборудование, шифр],MATCH(ROW(A18),таблПоиск11[Столбец2]))&\"'!\"&ADDRESS(ROW(A18)-INDEX(таблПоиск11[Столбец2],MATCH(ROW(A18),таблПоиск11[Столбец2]))+3,COLUMN())))","v":"Трубка 16х1.5 08X18H10 L=800"}]
[{"$f":"IF(ROW(A19)>$G$1,\"\",INDIRECT(\"'\"&INDEX(таблПоиск11[Оборудование, шифр],MATCH(ROW(A19),таблПоиск11[Столбец2]))&\"'!\"&ADDRESS(ROW(A19)-INDEX(таблПоиск11[Столбец2],MATCH(ROW(A19),таблПоиск11[Столбец2]))+3,COLUMN())))","v":"EBС.00.002"},{"$f":"IF(ROW(A19)>$G$1,\"\",INDIRECT(\"'\"&INDEX(таблПоиск11[Оборудование, шифр],MATCH(ROW(A19),таблПоиск11[Столбец2]))&\"'!\"&ADDRESS(ROW(A19)-INDEX(таблПоиск11[Столбец2],MATCH(ROW(A19),таблПоиск11[Столбец2]))+3,COLUMN())))","v":"Труба 48.3х1.5 08X18H10 L=780"}]
[{"$f":"IF(ROW(A20)>$G$1,\"\",INDIRECT(\"'\"&INDEX(таблПоиск11[Оборудование, шифр],MATCH(ROW(A20),таблПоиск11[Столбец2]))&\"'!\"&ADDRESS(ROW(A20)-INDEX(таблПоиск11[Столбец2],MATCH(ROW(A20),таблПоиск11[Столбец2]))+3,COLUMN())))","v":"EBС.00.003"},{"$f":"IF(ROW(A20)>$G$1,\"\",INDIRECT(\"'\"&INDEX(таблПоиск11[Оборудование, шифр],MATCH(ROW(A20),таблПоиск11[Столбец2]))&\"'!\"&ADDRESS(ROW(A20)-INDEX(таблПоиск11[Столбец2],MATCH(ROW(A20),таблПоиск11[Столбец2]))+3,COLUMN())))","v":"Труба 42.4х1.5 08X18H10 L=315"}]
[{"$f":"IF(ROW(A21)>$G$1,\"\",INDIRECT(\"'\"&INDEX(таблПоиск11[Оборудование, шифр],MATCH(ROW(A21),таблПоиск11[Столбец2]))&\"'!\"&ADDRESS(ROW(A21)-INDEX(таблПоиск11[Столбец2],MATCH(ROW(A21),таблПоиск11[Столбец2]))+3,COLUMN())))","v":""},{"$f":"IF(ROW(A21)>$G$1,\"\",INDIRECT(\"'\"&INDEX(таблПоиск11[Оборудование, шифр],MATCH(ROW(A21),таблПоиск11[Столбец2]))&\"'!\"&ADDRESS(ROW(A21)-INDEX(таблПоиск11[Столбец2],MATCH(ROW(A21),таблПоиск11[Столбец2]))+3,COLUMN())))","v":""}]
[{"$f":"IF(ROW(A22)>$G$1,\"\",INDIRECT(\"'\"&INDEX(таблПоиск11[Оборудование, шифр],MATCH(ROW(A22),таблПоиск11[Столбец2]))&\"'!\"&ADDRESS(ROW(A22)-INDEX(таблПоиск11[Столбец2],MATCH(ROW(A22),таблПоиск11[Столбец2]))+3,COLUMN())))","v":""},{"$f":"IF(ROW(A22)>$G$1,\"\",INDIRECT(\"'\"&INDEX(таблПоиск11[Оборудование, шифр],MATCH(ROW(A22),таблПоиск11[Столбец2]))&\"'!\"&ADDRESS(ROW(A22)-INDEX(таблПоиск11[Столбец2],MATCH(ROW(A22),таблПоиск11[Столбец2]))+3,COLUMN())))","v":""}]
[{"$f":"IF(ROW(A23)>$G$1,\"\",INDIRECT(\"'\"&INDEX(таблПоиск11[Оборудование, шифр],MATCH(ROW(A23),таблПоиск11[Столбец2]))&\"'!\"&ADDRESS(ROW(A23)-INDEX(таблПоиск11[Столбец2],MATCH(ROW(A23),таблПоиск11[Столбец2]))+3,COLUMN())))","v":""},{"$f":"IF(ROW(A23)>$G$1,\"\",INDIRECT(\"'\"&INDEX(таблПоиск11[Оборудование, шифр],MATCH(ROW(A23),таблПоиск11[Столбец2]))&\"'!\"&ADDRESS(ROW(A23)-INDEX(таблПоиск11[Столбец2],MATCH(ROW(A23),таблПоиск11[Столбец2]))+3,COLUMN())))","v":""}]
[{"$f":"IF(ROW(A24)>$G$1,\"\",INDIRECT(\"'\"&INDEX(таблПоиск11[Оборудование, шифр],MATCH(ROW(A24),таблПоиск11[Столбец2]))&\"'!\"&ADDRESS(ROW(A24)-INDEX(таблПоиск11[Столбец2],MATCH(ROW(A24),таблПоиск11[Столбец2]))+3,COLUMN())))","v":""},{"$f":"IF(ROW(A24)>$G$1,\"\",INDIRECT(\"'\"&INDEX(таблПоиск11[Оборудование, шифр],MATCH(ROW(A24),таблПоиск11[Столбец2]))&\"'!\"&ADDRESS(ROW(A24)-INDEX(таблПоиск11[Столбец2],MATCH(ROW(A24),таблПоиск11[Столбец2]))+3,COLUMN())))","v":""}]

{"sheet":"Статусы","index":1,"n_rows":9,"n_cols":1,"rows_kept":9,"cut":false,"hidden":true,"merged":[]}
["Статусы"]
["На запуске в КБ"]
["На запуске МУ"]
["Изготовление на МУ"]
["Сдано на склад ДСЕ"]
["На участке сборки"]
["Установка электрики и автоматики"]
["Испытания"]
["Упаковано"]

{"sheet":"Список оборудования","index":2,"n_rows":46,"n_cols":2,"rows_kept":46,"cut":false,"hidden":true,"merged":[]}
["Список шифров оборудовния","Список названий оборудовния"]
[]
[]
[{"$f":"IFERROR(INDEX(Оглавление,ROW()),\"\")","v":"КПУ EBS"},"Длинная печь(разогрев преформы)"]
[{"$f":"IFERROR(INDEX(Оглавление,ROW()),\"\")","v":"ДП"},"Автомат выдува"]
[{"$f":"IFERROR(INDEX(Оглавление,ROW()),\"\")","v":"ТРП"},"Автоматический группиратор бутылок"]
[{"$f":"IFERROR(INDEX(Оглавление,ROW()),\"\")","v":"ТРПШ"},"Автоматический группиратор бутылок"]
[{"$f":"IFERROR(INDEX(Оглавление,ROW()),\"\")","v":"ТРПП"},"Автоматический группиратор бутылок"]
[{"$f":"IFERROR(INDEX(Оглавление,ROW()),\"\")","v":""}]
[{"$f":"IFERROR(INDEX(Оглавление,ROW()),\"\")","v":""}]
[{"$f":"IFERROR(INDEX(Оглавление,ROW()),\"\")","v":""}]
[{"$f":"IFERROR(INDEX(Оглавление,ROW()),\"\")","v":""}]
[{"$f":"IFERROR(INDEX(Оглавление,ROW()),\"\")","v":""}]
[{"$f":"IFERROR(INDEX(Оглавление,ROW()),\"\")","v":""}]
[{"$f":"IFERROR(INDEX(Оглавление,ROW()),\"\")","v":""}]
[{"$f":"IFERROR(INDEX(Оглавление,ROW()),\"\")","v":""}]
[{"$f":"IFERROR(INDEX(Оглавление,ROW()),\"\")","v":""}]
[{"$f":"IFERROR(INDEX(Оглавление,ROW()),\"\")","v":""}]
[{"$f":"IFERROR(INDEX(Оглавление,ROW()),\"\")","v":""}]
[{"$f":"IFERROR(INDEX(Оглавление,ROW()),\"\")","v":""}]
[{"$f":"IFERROR(INDEX(Оглавление,ROW()),\"\")","v":""}]
[{"$f":"IFERROR(INDEX(Оглавление,ROW()),\"\")","v":""}]
[{"$f":"IFERROR(INDEX(Оглавление,ROW()),\"\")","v":""}]
[{"$f":"IFERROR(INDEX(Оглавление,ROW()),\"\")","v":""}]
[{"$f":"IFERROR(INDEX(Оглавление,ROW()),\"\")","v":""}]
[{"$f":"IFERROR(INDEX(Оглавление,ROW()),\"\")","v":""}]
[{"$f":"IFERROR(INDEX(Оглавление,ROW()),\"\")","v":""}]
[{"$f":"IFERROR(INDEX(Оглавление,ROW()),\"\")","v":""}]
[{"$f":"IFERROR(INDEX(Оглавление,ROW()),\"\")","v":""}]
[{"$f":"IFERROR(INDEX(Оглавление,ROW()),\"\")","v":""}]
[{"$f":"IFERROR(INDEX(Оглавление,ROW()),\"\")","v":""}]
[{"$f":"IFERROR(INDEX(Оглавление,ROW()),\"\")","v":""}]
[{"$f":"IFERROR(INDEX(Оглавление,ROW()),\"\")","v":""}]
[{"$f":"IFERROR(INDEX(Оглавление,ROW()),\"\")","v":""}]
[{"$f":"IFERROR(INDEX(Оглавление,ROW()),\"\")","v":""}]
[{"$f":"IFERROR(INDEX(Оглавление,ROW()),\"\")","v":""}]
[{"$f":"IFERROR(INDEX(Оглавление,ROW()),\"\")","v":""}]
[{"$f":"IFERROR(INDEX(Оглавление,ROW()),\"\")","v":""}]
[{"$f":"IFERROR(INDEX(Оглавление,ROW()),\"\")","v":""}]
[]
[{"$f":"IFERROR(INDEX(Оглавление,ROW()),\"\")","v":""}]
[{"$f":"IFERROR(INDEX(Оглавление,ROW()),\"\")","v":""}]
[{"$f":"IFERROR(INDEX(Оглавление,ROW()),\"\")","v":""}]
[{"$f":"IFERROR(INDEX(Оглавление,ROW()),\"\")","v":""}]
[{"$f":"IFERROR(INDEX(Оглавление,ROW()),\"\")","v":""}]
[{"$f":"IFERROR(INDEX(Оглавление,ROW()),\"\")","v":""}]

{"sheet":"КПУ EBS","index":3,"n_rows":12,"n_cols":25,"rows_kept":12,"cut":false,"hidden":false,"merged":[]}
["Шифр детали или СБ","Наименование детали или СБ","количество","Порядок запуска","Вырубка","Ленточнопильный","Гидрообразив","Лазер","Токарный","Токарный с ЧПУ","Фрезерный","Фрезерный с ЧПУ","Общее время","Расточка","Портальный фрезерный","Сварка","Шлифовальный","Зачистка","ОТК","Получение со склада","Сборка","Гибка","Упаковка, час","Сверловка","Резьба"]
[]
["EBС.01.000","Кронштейн пушки",1,null,null,null,null,null,null,null,null,null,null,null,null,null,null,null,null,null,null,null,12]
["ЕВС.01.001","Скоба",1]
["EBС.00.001","Кронштейн",1]
["EBС.00.004","Грибок",3,null,null,null,null,null,0.17,null,0.02,null,0.2,null,null,null,null,null,null,null,null,null,null,0.1,0.1]
["EBС.00.005","Полка",1]
["EBС.00.006","Держатель",2,null,null,0.05,null,null,0.25,null,0.4,null,1.1000000000000001,0.25,null,null,null,null,null,null,null,null,null,0.2,0.2]
["ЕБС.00.007","Пластина",2]
["ЕВС.01.002","Трубка 16х1.5 08X18H10 L=800",1]
["EBС.00.002","Труба 48.3х1.5 08X18H10 L=780",2]
["EBС.00.003","Труба 42.4х1.5 08X18H10 L=315",1]

{"sheet":"ДП","index":4,"n_rows":12,"n_cols":25,"rows_kept":12,"cut":false,"hidden":false,"merged":[]}
["Шифр детали или СБ","Наименование детали или СБ","количество","Порядок запуска","Вырубка","Ленточнопильный","Гидрообразив","Лазер","Токарный","Токарный с ЧПУ","Фрезерный","Фрезерный с ЧПУ","Общее время","Расточка","Портальный фрезерный","Сварка","Шлифовальный","Зачистка","ОТК","Получение со склада","Сборка","Гибка","Упаковка, час","Сверловка","Резьба"]
[]
["EBС.01.000","Кронштейн пушки",1,null,null,null,null,null,null,null,null,null,null,null,null,null,null,null,null,null,null,null,12]
["ЕВС.01.001","Скоба",1]
["EBС.00.001","Кронштейн",1]
["EBС.00.004","Грибок",3,null,null,null,null,null,0.17,null,0.02,null,0.2,null,null,null,null,null,null,null,null,null,null,0.1,0.1]
["EBС.00.005","Полка",1]
["EBС.00.006","Держатель",2,null,null,0.05,null,null,0.25,null,0.4,null,1.1000000000000001,0.25,null,null,null,null,null,null,null,null,null,0.2,0.2]
["ЕБС.00.007","Пластина",2]
["ЕВС.01.002","Трубка 16х1.5 08X18H10 L=800",1]
["EBС.00.002","Труба 48.3х1.5 08X18H10 L=780",2]
["EBС.00.003","Труба 42.4х1.5 08X18H10 L=315",1]

{"sheet":"ТРП","index":5,"n_rows":12,"n_cols":25,"rows_kept":12,"cut":false,"hidden":false,"merged":[]}
["Шифр детали или СБ","Наименование детали или СБ","количество","Порядок запуска","Вырубка","Ленточнопильный","Гидрообразив","Лазер","Токарный","Токарный с ЧПУ","Фрезерный","Фрезерный с ЧПУ","Общее время","Расточка","Портальный фрезерный","Сварка","Шлифовальный","Зачистка","ОТК","Получение со склада","Сборка","Гибка","Упаковка, час","Сверловка","Резьба"]
[]
["EBС.01.000","Кронштейн пушки",1,null,null,null,null,null,null,null,null,null,null,null,null,null,null,null,null,null,null,null,12]
["ЕВС.01.001","Скоба",1]
["EBС.00.001","Кронштейн",1]
["EBС.00.004","Грибок",3,null,null,null,null,null,0.17,null,0.02,null,0.2,null,null,null,null,null,null,null,null,null,null,0.1,0.1]
["EBС.00.005","Полка",1]
["EBС.00.006","Держатель",2,null,null,0.05,null,null,0.25,null,0.4,null,1.1000000000000001,0.25,null,null,null,null,null,null,null,null,null,0.2,0.2]
["ЕБС.00.007","Пластина",2]
["ЕВС.01.002","Трубка 16х1.5 08X18H10 L=800",1]
["EBС.00.002","Труба 48.3х1.5 08X18H10 L=780",2]
["EBС.00.003","Труба 42.4х1.5 08X18H10 L=315",1]

{"sheet":"ТРПШ","index":6,"n_rows":12,"n_cols":25,"rows_kept":12,"cut":false,"hidden":false,"merged":[]}
["Шифр детали или СБ","Наименование детали или СБ","количество","Порядок запуска","Вырубка","Ленточнопильный","Гидрообразив","Лазер","Токарный","Токарный с ЧПУ","Фрезерный","Фрезерный с ЧПУ","Общее время","Расточка","Портальный фрезерный","Сварка","Шлифовальный","Зачистка","ОТК","Получение со склада","Сборка","Гибка","Упаковка, час","Сверловка","Резьба"]
[]
["EBС.01.000","Кронштейн пушки",1,null,null,null,null,null,null,null,null,null,null,null,null,null,null,null,null,null,null,null,12]
["ЕВС.01.001","Скоба",1]
["EBС.00.001","Кронштейн",1]
["EBС.00.004","Грибок",3,null,null,null,null,null,0.17,null,0.02,null,0.2,null,null,null,null,null,null,null,null,null,null,0.1,0.1]
["EBС.00.005","Полка",1]
["EBС.00.006","Держатель",2,null,null,0.05,null,null,0.25,null,0.4,null,1.1000000000000001,0.25,null,null,null,null,null,null,null,null,null,0.2,0.2]
["ЕБС.00.007","Пластина",2]
["ЕВС.01.002","Трубка 16х1.5 08X18H10 L=800",1]
["EBС.00.002","Труба 48.3х1.5 08X18H10 L=780",2]
["EBС.00.003","Труба 42.4х1.5 08X18H10 L=315",1]

{"sheet":"ТРПП","index":7,"n_rows":12,"n_cols":25,"rows_kept":12,"cut":false,"hidden":false,"merged":[]}
["Шифр детали или СБ","Наименование детали или СБ","количество","Порядок запуска","Вырубка","Ленточнопильный","Гидрообразив","Лазер","Токарный","Токарный с ЧПУ","Фрезерный","Фрезерный с ЧПУ","Общее время","Расточка","Портальный фрезерный","Сварка","Шлифовальный","Зачистка","ОТК","Получение со склада","Сборка","Гибка","Упаковка, час","Сверловка","Резьба"]
[]
["EBС.01.000","Кронштейн пушки",1,null,null,null,null,null,null,null,null,null,null,null,null,null,null,null,null,null,null,null,12]
["ЕВС.01.001","Скоба",1]
["EBС.00.001","Кронштейн",1]
["EBС.00.004","Грибок",3,null,null,null,null,null,0.17,null,0.02,null,0.2,null,null,null,null,null,null,null,null,null,null,0.1,0.1]
["EBС.00.005","Полка",1]
["EBС.00.006","Держатель",2,null,null,0.05,null,null,0.25,null,0.4,null,1.1000000000000001,0.25,null,null,null,null,null,null,null,null,null,0.2,0.2]
["ЕБС.00.007","Пластина",2]
["ЕВС.01.002","Трубка 16х1.5 08X18H10 L=800",1]
["EBС.00.002","Труба 48.3х1.5 08X18H10 L=780",2]
["EBС.00.003","Труба 42.4х1.5 08X18H10 L=315",1]